fUSD/lending_fUSD_20240805
["ID","MTS","AMOUNT","RATE_DAILY","PERIOD"]
[334262503,1722873063681,-294.633735,0.000249,7]
[334262504,1722873063691,-160.175098,0.000249,7]
[334262505,1722873063701,-160.175098,0.000249,7]
[334262506,1722873063711,-242.791145,0.000249,7]
[334262507,1722873063722,-242.791145,0.000249,7]
[334262508,1722873063733,-161.943854,0.000249,7]
[334262509,1722873063744,-161.943854,0.000249,7]
[334262510,1722873063754,-4493.050001,0.000249,7]
[334262511,1722873063764,-4493.050001,0.000249,7]
[334262512,1722873063775,-177.56,0.000249,7]
[334262513,1722873063784,-177.56,0.000249,7]
[334262514,1722873063795,-151.0,0.000249,7]
[334262515,1722873063805,-153.537472,0.000249,7]
[334262516,1722873063815,-942.414915,0.000249,7]
[334262517,1722873063824,-942.414915,0.000249,7]
[334262518,1722873063837,-157.602656,0.000249,7]
[334262519,1722873063847,-157.602656,0.000249,7]
[334262520,1722873063856,-961.29,0.000249,31]
[334262521,1722873063866,-961.29,0.000249,31]
[334262522,1722873063875,-961.29,0.000249,31]
[334262523,1722873063885,-961.29,0.000249,31]
[334262524,1722873063895,-961.29,0.000249,31]
[334262525,1722873063905,-961.29,0.000249,31]
[334262526,1722873063915,-961.29,0.000249,31]
[334262527,1722873063925,-961.29,0.000249,31]
[334262528,1722873063935,-961.29,0.000249,31]
[334262529,1722873063948,-961.29,0.000249,31]
[334262530,1722873063958,-961.29,0.000249,31]
[334262531,1722873063968,-961.29,0.000249,31]
[334262532,1722873063979,-961.29,0.000249,31]
[334262533,1722873063989,-961.29,0.000249,31]
[334262534,1722873063999,-961.29,0.000249,31]
[334262535,1722873064008,-961.29,0.000249,31]
[334262536,1722873064020,-961.29,0.000249,31]
[334262537,1722873064030,-961.29,0.000249,31]
[334262538,1722873064040,-961.29,0.000249,31]
[334262539,1722873064049,-961.29,0.000249,31]
[334262540,1722873064059,-10238.82754816,0.000249,2]
[334262541,1722873064069,-160.8117567,0.000249,2]
[334262542,1722873064078,-160.8117567,0.000249,2]
[334262543,1722873064092,-160.8117567,0.000249,2]
[334262544,1722873064102,-160.8117567,0.000249,2]
[334262545,1722873064112,-160.8117567,0.000249,2]
[334262546,1722873064122,-160.8117567,0.000249,2]
[334262547,1722873064131,-160.8117567,0.000249,2]
[334262548,1722873064141,-160.8117567,0.000249,2]
[334262549,1722873064151,-160.8117567,0.000249,2]
[334262550,1722873064161,-160.8117567,0.000249,2]
[334262551,1722873064171,-160.8117567,0.000249,2]
[334262552,1722873064181,-161.31,0.000249,2]
[334262553,1722873064191,-386.02321609,0.000249,2]
[334262554,1722873064201,-386.02321609,0.000249,2]
[334262555,1722873064211,-386.02321609,0.000249,2]
[334262556,1722873064221,-386.02321609,0.000249,2]
[334262557,1722873064231,-386.02321609,0.000249,2]
[334262558,1722873064240,-386.02321609,0.000249,2]
[334262559,1722873064250,-386.02321609,0.000249,2]
[334262560,1722873064260,-386.02321609,0.000249,2]
[334262561,1722873064270,-386.02321609,0.000249,2]
[334262562,1722873064280,-386.02321609,0.000249,2]
[334262563,1722873064290,-386.02321609,0.000249,2]
[334262564,1722873064301,-386.02321609,0.000249,2]
[334262565,1722873064311,-386.02321609,0.000249,2]
[334262566,1722873064321,-386.02321609,0.000249,2]
[334262567,1722873064335,-386.02321609,0.000249,2]
[334262568,1722873064345,-386.02321609,0.000249,2]
[334262569,1722873064354,-386.02321609,0.000249,2]
[334262570,1722873064365,-386.02321609,0.000249,2]
[334262571,1722873064374,-386.02321609,0.000249,2]
[334262572,1722873064384,-386.52,0.000249,2]
[334262573,1722873064394,-286.20550824,0.000249,2]
[334262574,1722873064404,-286.20550824,0.000249,2]
[334262575,1722873064414,-286.20550824,0.000249,2]
[334262576,1722873064423,-286.20550824,0.000249,2]
[334262577,1722873064433,-286.20550824,0.000249,2]
[334262578,1722873064444,-286.20550824,0.000249,2]
[334262579,1722873064454,-286.20550824,0.000249,2]
[334262580,1722873064464,-286.20550824,0.000249,2]
[334262581,1722873064474,-330.77,0.000249,14]
[334262582,1722873064484,-286.20550824,0.000249,2]
[334262583,1722873064494,-286.20550824,0.000249,2]
[334262584,1722873064504,-286.20550824,0.000249,2]
[334262585,1722873064515,-286.20550824,0.000249,2]
[334262586,1722873064524,-286.20550824,0.000249,2]
[334262587,1722873064535,-286.20550824,0.000249,2]
[334262588,1722873064545,-286.20550824,0.000249,2]
[334262589,1722873064554,-286.20550824,0.000249,2]
[334262590,1722873064564,-286.20550824,0.000249,2]
[334262591,1722873064574,-286.20550824,0.000249,2]
[334262592,1722873064587,-286.20550824,0.000249,2]
[334262593,1722873064596,-286.7,0.000249,2]
[334262594,1722873064607,-1144.89703298,0.000249,2]
[334262595,1722873064617,-1144.89703298,0.000249,2]
[334262596,1722873064627,-1144.89703298,0.000249,2]
[334262597,1722873064637,-1144.89703298,0.000249,2]
[334262598,1722873064647,-1144.89703298,0.000249,2]
[334262599,1722873064656,-1144.89703298,0.000249,2]
[334262600,1722873064666,-1144.89703298,0.000249,2]
[334262601,1722873064676,-1144.89703298,0.000249,2]
[334262602,1722873064687,-1144.89703298,0.000249,2]
[334262603,1722873064697,-1144.89703298,0.000249,2]
[334262604,1722873064707,-1144.89703298,0.000249,2]
[334262605,1722873064717,-1144.89703298,0.000249,2]
[334262606,1722873064727,-1144.89703298,0.000249,2]
[334262607,1722873064737,-1144.89703298,0.000249,2]
[334262608,1722873064747,-1144.89703298,0.000249,2]
[334262609,1722873064756,-1144.89703298,0.000249,2]
[334262610,1722873064766,-1144.89703298,0.000249,2]
[334262611,1722873064776,-1144.89703298,0.000249,2]
[334262612,1722873064786,-1144.89703298,0.000249,2]
[334262613,1722873064796,-1145.39,0.000249,2]
[334262614,1722873064806,-152.92603818,0.000249,2]
[334262615,1722873064815,-152.92603818,0.000249,2]
[334262616,1722873064825,-152.92603818,0.000249,2]
[334262617,1722873064839,-152.92603818,0.000249,2]
[334262618,1722873064848,-152.92603818,0.000249,2]
[334262619,1722873064858,-153.42,0.000249,2]
[334262620,1722873064868,-183.58624581,0.000249,2]
[334262621,1722873064878,-183.58624581,0.000249,2]
[334262622,1722873064887,-183.58624581,0.000249,2]
[334262623,1722873064897,-183.58624581,0.000249,2]
[334262624,1722873064907,-183.58624581,0.000249,2]
[334262625,1722873064917,-183.58624581,0.000249,2]
[334262626,1722873064928,-183.58624581,0.000249,2]
[334262627,1722873064940,-183.58624581,0.000249,2]
[334262628,1722873064949,-183.58624581,0.000249,2]
[334262629,1722873064959,-183.58624581,0.000249,2]
[334262630,1722873064968,-183.58624581,0.000249,2]
[334262631,1722873064979,-183.58624581,0.000249,2]
[334262632,1722873064989,-183.58624581,0.000249,2]
[334262633,1722873064998,-183.58624581,0.000249,2]
[334262634,1722873065009,-183.58624581,0.000249,2]
[334262635,1722873065020,-183.58624581,0.000249,2]
[334262636,1722873065030,-183.58624581,0.000249,2]
[334262637,1722873065039,-183.58624581,0.000249,2]
[334262638,1722873065049,-183.58624581,0.000249,2]
[334262639,1722873065059,-184.08,0.000249,2]
[334262640,1722873065070,-217.457022,0.000249,7]
[334262641,1722873065081,-280.16398905,0.000249,2]
[334262642,1722873065095,-1303.680173,0.000249,7]
[334262643,1722873065113,-1303.680173,0.000249,7]
[334262644,1722873065123,-170.25455804,0.000249,2]
[334262645,1722873065132,-500.0,0.00024908,2]
[334262646,1722873065142,-204.757337,0.00024917,7]
[334262647,1722873065153,-204.757337,0.00024917,7]
[334262648,1722873065162,-151.0,0.00024917,7]
[334262649,1722873065172,-521.433248,0.00024917,7]
[334262650,1722873065182,-521.433248,0.00024917,7]
[334262651,1722873065192,-597.760281,0.00024917,7]
[334262652,1722873065202,-597.760281,0.00024917,7]
[334262653,1722873065211,-500.0,0.00024917,2]
[334262654,1722873065221,-500.0,0.00024926,2]
[334262655,1722873065231,-500.0,0.00024931,30]
[334262656,1722873065240,-833.33,0.00024931,30]
[334262657,1722873065251,-500.0,0.00024931,30]
[334262658,1722873065260,-500.0,0.00024935,2]
[334262659,1722873065270,-500.0,0.00024944,2]
[334262660,1722873065281,-500.0,0.00024952,2]
[334262661,1722873065291,-500.0,0.00024961,2]
[334262662,1722873065300,-450.0,0.0002497,2]
[334262663,1722873065310,-500.0,0.0002497,2]
[334262664,1722873065320,-500.0,0.00024974,2]
[334262665,1722873065330,-500.0,0.00024974,2]
[334262666,1722873065344,-501.22,0.00024974,2]
[334262667,1722873065354,-345.232768,0.00024983,7]
[334262668,1722873065364,-345.232768,0.00024983,7]
[334262669,1722873065376,-322.033161,0.00024983,7]
[334262670,1722873065385,-322.033161,0.00024983,7]
[334262671,1722873065395,-151.0,0.00024983,7]
[334262672,1722873065405,-164.923632,0.00024983,7]
[334262673,1722873065415,-267.08746,0.00024983,7]
[334262674,1722873065425,-12142.1004066,0.00024983,2]
[334262675,1722873065435,-10562.1380771,0.00024983,2]
[334262676,1722873065445,-267.08746,0.00024983,7]
[334262677,1722873065455,-8982.1757475,0.00024983,2]
[334262678,1722873065465,-7402.2134179,0.00024983,2]
[334262679,1722873065476,-5822.2510883,0.00024983,2]
[334262680,1722873065486,-762.136116,0.00024983,7]
[334262681,1722873065496,-762.136116,0.00024983,7]
[334262682,1722873065506,-283.716499,0.00024983,7]
[334262683,1722873065517,-1236.576689,0.00024983,2]
[334262684,1722873065527,-1080.4459011,0.00024983,2]
[334262685,1722873065539,-924.3151133,0.00024983,2]
[334262686,1722873065549,-768.1843255,0.00024983,2]
[334262687,1722873065559,-612.0535377,0.00024983,2]
[334262688,1722873065569,-283.716499,0.00024983,7]
[334262689,1722873065580,-314.8665473,0.00024983,2]
[334262690,1722873065593,-275.1113405,0.00024983,2]
[334262691,1722873065603,-235.3561336,0.00024983,2]
[334262692,1722873065612,-195.6009267,0.00024983,2]
[334262693,1722873065625,-155.8457198,0.00024983,2]
[334262694,1722873065635,-151.0,0.00024983,7]
[334262695,1722873065646,-282.954892,0.00024983,7]
[334262696,1722873065657,-282.954892,0.00024983,7]
[334262697,1722873065667,-152.0,0.00024991,5]
[334262698,1722873065677,-107176.17963801,0.00024999,2]
[334262699,1722873065686,-3000.0,0.00024999,2]
[334262700,1722873065696,-3000.0,0.00024999,2]
[334262701,1722873065706,-3000.0,0.00024999,2]
[334262702,1722873065716,-513.379401,0.00024999,7]
[334262703,1722873065726,-513.379407,0.00024999,7]
[334262704,1722873065736,-151.0,0.00024999,7]
[334262705,1722873065746,-525.89479,0.00024999,7]
[334262706,1722873065756,-525.89479,0.00024999,7]
[334262707,1722873065766,-447.532233,0.00024999,2]
[334262708,1722873065776,-447.532234,0.00024999,2]
[334262709,1722873065786,-280.77696,0.00024999,7]
[334262710,1722873065798,-181.956367,0.00024999,7]
[334262711,1722873065809,-280.77696,0.00024999,7]
[334262712,1722873065819,-181.956373,0.00024999,7]
[334262713,1722873065830,-217.301948,0.00024999,7]
[334262714,1722873065846,-217.30195,0.00024999,7]
[334262715,1722873065856,-251.428043,0.00024999,7]
[334262716,1722873065866,-251.428043,0.00024999,7]
[334262717,1722873065876,-228.307641,0.00024999,7]
[334262718,1722873065885,-228.307641,0.00024999,7]
[334262719,1722873065896,-151.0,0.00024999,7]
[334262720,1722873065907,-151.0,0.00024999,7]
[334262721,1722873065918,-252.022855,0.00024999,7]
[334262722,1722873065930,-252.022857,0.00024999,7]
[334262723,1722873066228,-157.436173,0.00024999,7]
[334262724,1722873066239,-157.436181,0.00024999,7]
[334262725,1722873066250,-2300.70598766,0.00025,2]
[334262726,1722873066261,-370174.42377127,0.00025,11]
[334262727,1722873067255,-566.7453937,0.00025,11]
[334262728,1722873067267,-1922.61,0.00025,11]
[334262729,1722873067281,-113078.9548274,0.00025,11]
[334262730,1722873067291,-38521.4251726,0.00025,2]
[334262731,1722873067303,-339.035,0.00025,2]
[334262732,1722873067315,-54628.59845921,0.00025,2]
[334262733,1722873067354,174.19,0.00010959,2]
[334262734,1722873067480,-218.77944705,0.0001269,2]
[334262735,1722873067491,-476.65214277,0.00012924,2]
[334262736,1722873067501,-3977.2935375,0.00013699,2]
[334262737,1722873067510,-722.96983282,0.00014988,2]
[334262738,1722873067520,-164.28139414,0.00015999,2]
[334262739,1722873067530,-265.28035561,0.00016033,2]
[334262740,1722873067540,-2506.83285481,0.00016465,2]
[334262741,1722873067553,-367.64405093,0.0001647,2]
[334262742,1722873067563,-211.4,0.0002,2]
[334262743,1722873067573,-155.0,0.00020821,2]
[334262744,1722873067583,-959.8543413,0.00024619,2]
[334262745,1722873067595,-151.0,0.000248,7]
[334262746,1722873067605,-151.0,0.00024983,7]
[334262747,1722873067615,-293546.52531101,0.00025,2]
[334262748,1722873067629,-490.04,0.00025,2]
[334262749,1722873067641,-64026.25000001,0.00025,2]
[334262750,1722873067665,-1329.54172578,0.00025,2]
[334262751,1722873067681,-1232.8790104,0.00025,2]
[334262752,1722873069232,-843.03582672,0.00025,2]
[334262753,1722873069243,-612.5168473,0.00025,2]
[334262754,1722873069513,-719.34566812,0.0001254,2]
[334262755,1722873069523,-155.0,0.00012749,2]
[334262756,1722873069532,-155.0,0.00016425,2]
[334262757,1722873069541,-459.01335158,0.00016425,2]
[334262758,1722873069592,-60.79897503,0.00016425,2]
[334262759,1722873069602,-155.0,0.0001647,2]
[334262760,1722873069612,-203.28844738,0.00017533,2]
[334262761,1722873069621,-611878.55955215,0.00025,2]
[334262762,1722873069769,-236.19407815,0.00016232,2]
[334262763,1722873069779,-376.28092185,0.0002012,2]
[334262764,1722873069790,-291.35233723,0.0002012,2]
[334262765,1722873069801,-266.39857557,0.0002012,2]
[334262766,1722873069817,-155.34386906,0.00016441,2]
[334262767,1722873069826,-471.16241711,0.0002012,2]
[334262768,1722873069835,-808.28536548,0.000249,2]
[334262769,1722873069846,-151.56897582,0.000249,2]
[334262770,1722873069856,-409.70014278,0.00025,2]
[334262771,1722873069868,-1303.17693193,0.00025,2]
[334262772,1722873069879,-522.88362862,0.00025,2]
[334262773,1722873069891,-2924.57046392,0.00025,2]
[334262774,1722873069902,-500.0,0.00025,2]
[334262775,1722873069912,-346.32,0.00025,2]
[334262776,1722873185906,2234.79596066,0.000105,2]
[334262777,1722873203539,500.0,0.00024999,120]
[334262779,1722873540580,-866.0,0.00013117,2]
[334262780,1722873559724,-643.0,0.00013117,2]
[334262781,1722873801952,500.0,0.00024999,120]
[334262782,1722874013536,1960.02,0.00025,60]
[334262821,1722874083015,500.0,0.00025,60]
[334262822,1722874130033,4474.21822567,0.00011959,2]
[334263025,1722874207333,4052.27718785,0.00011959,2]
[334263041,1722874210800,4937.8657719,0.00011959,2]
[334263042,1722874210992,1284.43873341,0.00011959,2]
[334263072,1722874232199,-1696.828072,0.00012527,2]
[334263073,1722874232209,-300.0,0.00013377,2]
[334263074,1722874232226,-6219.94730617,0.00013378,2]
[334263075,1722874232255,-723.01385731,0.00013378,2]
[334263076,1722874232369,-667.36237526,0.00013378,2]
[334263077,1722874232382,-633.33,0.00013378,2]
[334263078,1722874232393,-508.47198714,0.00013378,2]
[334263079,1722874232406,-6606.6,0.00013378,2]
[334263080,1722874232417,-114.82803477,0.00013378,2]
[334263082,1722874232426,-1006.42707234,0.00013479,2]
[334263083,1722874232439,-1093.40440593,0.00013479,2]
[334263099,1722874238280,-318.28057013,0.00013297,2]
[334263100,1722874238291,-279.36,0.00013297,2]
[334263101,1722874238303,-544.26952874,0.00013297,2]
[334263102,1722874238388,-475.14527595,0.00013297,2]
[334263440,1722874243087,-3148.83366256,0.00013297,2]
[334263445,1722874243098,-2837.74696614,0.00013297,2]
[334263447,1722874243109,-543.81127342,0.00013297,2]
[334263449,1722874243124,-3382.55641335,0.00013297,2]
[334263452,1722874243139,-820.3204768,0.00013297,2]
[334263474,1722874243240,-4435.87163543,0.00013297,2]
[334263484,1722874243279,-3472.49405737,0.00013297,2]
[334263487,1722874243291,-3393.16024479,0.00013297,2]
[334263490,1722874243300,-8428.15873517,0.00013479,2]
[334263493,1722874243310,-150.0,0.00013482,2]
[334263496,1722874243319,-5398.05238317,0.00013483,2]
[334263498,1722874243328,-3781.4284,0.0001349,2]
[334263500,1722874243343,-1693.6109,0.0001349,2]
[334263502,1722874243352,-1138.37465577,0.00013499,2]
[334263504,1722874243361,-220.52,0.000135,2]
[334263506,1722874243371,-968.12476764,0.0001351,2]
[334263508,1722874243380,-100000.0,0.0001359,2]
[334263510,1722874243389,-385.63363043,0.00013648,2]
[334263512,1722874243399,-653.24000473,0.00013648,2]
[334263514,1722874243410,-921.03072838,0.0001367,2]
[334263516,1722874243420,-347.45998025,0.0001367,2]
[334263518,1722874243430,-264.3297815,0.0001367,2]
[334263520,1722874243440,-243.04057273,0.0001367,2]
[334263522,1722874243450,-335.85699842,0.0001367,2]
[334263524,1722874243459,-535.64088937,0.00013698,2]
[334263526,1722874243468,-441.5272259,0.00013698,2]
[334263528,1722874243480,-254.92977775,0.00013698,2]
[334263530,1722874243489,-436.88212083,0.00013698,2]
[334263532,1722874243498,-898.15917672,0.00013698,2]
[334263534,1722874243508,-2144.62791432,0.00013699,2]
[334263535,1722874243517,-205.81331723,0.0001372,2]
[334263538,1722874243526,-155.0,0.00013789,2]
[334263539,1722874243536,-327.00455888,0.00013825,2]
[334263542,1722874243545,-168.41,0.00013973,2]
[334263544,1722874243555,-499.99,0.00013973,2]
[334263546,1722874243564,-210.93263361,0.00013996,2]
[334263548,1722874243573,-297.29865721,0.00014086,2]
[334263550,1722874243582,-947.92262883,0.00014451,2]
[334263552,1722874243592,-155.0,0.00014579,2]
[334263554,1722874243601,-420.0,0.00014665,2]
[334263556,1722874243611,-155.0,0.00014667,2]
[334263558,1722874243620,-202.77094298,0.00016033,2]
[334263560,1722874243629,-587.0,0.00016076,2]
[334263562,1722874243638,-250.0,0.00016131,2]
[334263564,1722874243650,-317.25,0.00016193,2]
[334263566,1722874243660,-250.0,0.00016308,2]
[334263568,1722874243669,-439.81414465,0.00016425,2]
[334263570,1722874243679,-454.307743,0.00016799,2]
[334263572,1722874243688,-1286.0,0.00016904,2]
[334263574,1722874243698,-5615.7,0.00016986,2]
[334263576,1722874243707,-2500.0,0.000171,2]
[334263578,1722874243717,-3320.0,0.000172,2]
[334263580,1722874243730,-10000.0,0.00017442,2]
[334263582,1722874243739,-823.0,0.00017623,2]
[334263584,1722874243748,-1000.0,0.00018087,2]
[334263586,1722874243757,-200.0,0.00018327,2]
[334263588,1722874243767,-3887.1,0.00018437,2]
[334263590,1722874243776,-317.25,0.00018457,2]
[334263592,1722874243786,-1152.0,0.00019319,2]
[334263594,1722874243795,-2384.7960601,0.00019319,2]
[334263596,1722874243804,-1286.0,0.00019904,2]
[334263598,1722874243814,-4456.41720984,0.0002,2]
[334263600,1722874243823,-17826.63863775,0.0002,2]
[334263602,1722874243833,-1176.62868321,0.00020191,2]
[334263604,1722874243842,-500.0,0.00020205,2]
[334263606,1722874243851,-1000.0,0.00020347,2]
[334263608,1722874243861,-866.0,0.000204,3]
[334263610,1722874243870,-500.0,0.00020571,2]
[334263612,1722874243879,-317.25,0.0002072,2]
[334263614,1722874243888,-500.0,0.00020736,2]
[334263616,1722874243898,-1074.00301579,0.00020899,2]
[334263618,1722874243907,-203.41,0.00020995,5]
[334263620,1722874243917,-11495.0,0.00021,5]
[334263622,1722874243926,-500.0,0.00021589,2]
[334263624,1722874243936,-500.0,0.00021589,2]
[334263626,1722874243946,-500.0,0.00021589,2]
[334263629,1722874243956,-500.0,0.00021589,2]
[334263631,1722874243965,-500.0,0.00021589,2]
[334263632,1722874243977,-500.0,0.00021589,2]
[334263634,1722874243987,-500.0,0.00021589,2]
[334263636,1722874243996,-500.0,0.00021589,2]
[334263638,1722874244006,-500.0,0.00021589,2]
[334263640,1722874244015,-500.0,0.00021589,2]
[334263642,1722874244026,-500.0,0.00021589,2]
[334263644,1722874244043,-500.0,0.00021589,2]
[334263646,1722874244054,-500.0,0.00021589,2]
[334263648,1722874244064,-500.0,0.00021589,2]
[334263650,1722874244081,-500.0,0.00021589,2]
[334263653,1722874244091,-500.0,0.00021589,2]
[334263655,1722874244100,-500.0,0.00021589,2]
[334263657,1722874244110,-500.0,0.00021589,2]
[334263659,1722874244119,-500.0,0.00021589,2]
[334263661,1722874244128,-500.0,0.00021589,2]
[334263663,1722874244138,-500.0,0.00021589,2]
[334263665,1722874244147,-500.0,0.00021589,2]
[334263667,1722874244157,-500.0,0.00021589,2]
[334263669,1722874244166,-500.0,0.00021589,2]
[334263671,1722874244176,-500.0,0.00021589,2]
[334263673,1722874244187,-500.0,0.00021589,2]
[334263675,1722874244196,-500.0,0.00021589,2]
[334263677,1722874244205,-500.0,0.00021589,2]
[334263679,1722874244215,-500.0,0.00021589,2]
[334263681,1722874244227,-500.0,0.00021589,2]
[334263683,1722874244242,-500.0,0.00021589,2]
[334263684,1722874244252,-500.0,0.00021589,2]
[334263687,1722874244261,-500.0,0.00021589,2]
[334263689,1722874244271,-500.0,0.00021589,2]
[334263691,1722874244280,-500.0,0.00021589,2]
[334263693,1722874244290,-500.0,0.00021589,2]
[334263695,1722874244299,-500.0,0.00021589,2]
[334263697,1722874244308,-500.0,0.00021589,2]
[334263699,1722874244318,-500.0,0.00021589,2]
[334263701,1722874244327,-500.0,0.00021589,2]
[334263703,1722874244342,-500.0,0.00021589,2]
[334263705,1722874244351,-500.0,0.00021589,2]
[334263707,1722874244360,-6286.24,0.00021589,30]
[334263709,1722874244370,-200.0,0.0002176,2]
[334263711,1722874244380,-200.0,0.0002176,2]
[334263713,1722874244389,-493.0,0.000219,2]
[334263715,1722874244398,-1000.0,0.000219,2]
[334263717,1722874244408,-784.53,0.00021918,2]
[334263719,1722874244418,-338.62,0.00021918,2]
[334263720,1722874244428,-150.0,0.00021918,2]
[334263723,1722874244438,-500.0,0.00022366,2]
[334263724,1722874244448,-500.0,0.00022366,2]
[334263726,1722874244457,-500.0,0.00022366,2]
[334263728,1722874244467,-500.0,0.00022366,2]
[334263730,1722874244486,-500.0,0.00022366,2]
[334263732,1722874244495,-500.0,0.00022366,2]
[334263734,1722874244504,-500.0,0.00022366,2]
[334263736,1722874244514,-14143.7553,0.00022366,2]
[334263738,1722874244523,-2000.0,0.00022366,2]
[334263740,1722874244532,-1000.0,0.00022466,2]
[334263743,1722874244542,-150.0,0.00022495,2]
[334263745,1722874244551,-1000.0,0.00022608,2]
[334263747,1722874244560,-1286.0,0.00022904,2]
[334263749,1722874244570,-317.25,0.00022984,2]
[334263751,1722874244579,-150.0,0.00023071,2]
[334263753,1722874244588,-400.0,0.0002313,2]
[334263755,1722874244598,-180.0,0.00023205,2]
[334263757,1722874244607,-152.0,0.00023274,3]
[334263759,1722874244617,-6290.2745887,0.00023451,2]
[334263761,1722874244627,-150.0,0.00023648,2]
[334263763,1722874244636,-3738.58906371,0.00023863,4]
[334263765,1722874244645,-3080.259936,0.00023873,2]
[334263767,1722874244655,-41124.4797008,0.0002389,4]
[334263769,1722874244665,-10000.0,0.000239,2]
[334263771,1722874244675,-217.0,0.000239,2]
[334263773,1722874244684,-29793.7241,0.000239,2]
[334263775,1722874244694,-1000.0,0.000239,2]
[334263777,1722874244704,-500.0,0.0002394,2]
[334263779,1722874244714,-500.0,0.00023949,2]
[334263781,1722874244733,-500.0,0.00023958,2]
[334263783,1722874244743,-500.0,0.00023967,2]
[334263785,1722874244753,-3738.58906371,0.00023974,4]
[334263787,1722874244763,-500.0,0.00023976,2]
[334263789,1722874244774,-500.0,0.00023984,2]
[334263791,1722874244783,-3738.58906371,0.0002399,4]
[334263793,1722874244793,-500.0,0.00023993,2]
[334263795,1722874244802,-4000.0,0.00024,2]
[334263797,1722874244812,-25000.0,0.00024,2]
[334263799,1722874244822,-500.0,0.00024002,2]
[334263801,1722874244833,-500.0,0.00024011,2]
[334263803,1722874244842,-834.66,0.00024055,2]
[334263805,1722874244852,-202.9738678,0.00024124,2]
[334263807,1722874244862,-155.0,0.00024124,2]
[334263810,1722874244872,-212.28712387,0.00024124,2]
[334263812,1722874244881,-1930.8034395,0.00024124,2]
[334263813,1722874244891,-200.0,0.00024133,2]
[334263815,1722874244900,-200.0,0.00024133,2]
[334263817,1722874244910,-3738.58906371,0.00024145,4]
[334263820,1722874244920,-700.51298905,0.00024155,2]
[334263822,1722874244930,-150.0,0.00024225,2]
[334263824,1722874244939,-152.0,0.00024276,4]
[334263826,1722874244949,-500.0,0.00024304,2]
[334263828,1722874244958,-674.40513377,0.00024403,2]
[334263830,1722874244967,-674.40513377,0.00024415,2]
[334263832,1722874244980,-750.0,0.00024423,2]
[334263834,1722874244989,-674.40513377,0.00024423,2]
[334263836,1722874244999,-3738.58906371,0.0002445,4]
[334263838,1722874245009,-674.40513377,0.0002446,2]
[334263840,1722874245019,-674.40513377,0.00024463,2]
[334263842,1722874245028,-674.40513377,0.00024467,2]
[334263844,1722874245039,-674.40513377,0.00024488,2]
[334263846,1722874245048,-674.40513377,0.0002449,2]
[334263848,1722874245057,-11215.7671911,0.000245,4]
[334263850,1722874245067,-8500.0,0.0002451,2]
[334263852,1722874245076,-151.11,0.0002467,2]
[334263854,1722874245086,-7500.0,0.0002468,2]
[334263856,1722874245095,-7477.17812742,0.0002469,5]
[334263858,1722874245105,-11263.24104225,0.00024768,21]
[334263860,1722874245114,-11215.7671911,0.00024768,5]
[334263862,1722874245123,-97203.3156565,0.0002477,5]
[334263864,1722874245132,-877.9361014,0.00024777,2]
[334263866,1722874245143,-69500.83456306,0.0002478,7]
[334264613,1722874253357,-76577.39338105,0.0002478,7]
[334264614,1722874253367,-12606.4656725,0.0002478,5]
[334264615,1722874253379,-31516.1641812,0.0002479,5]
[334264616,1722874253388,-487857.2494296,0.000248,2]
[334264617,1722874253399,-150.0,0.00024802,2]
[334264618,1722874253408,-838.298,0.00024825,2]